fUSD/lending_fUSD_20250125
["ID","MTS","AMOUNT","RATE_DAILY","PERIOD"]
[350407869,1737831035616,-500.0,0.00018163,2]
[350407870,1737831035626,-537.7903153,0.00018163,2]
[350407871,1737831035636,-500.0,0.00018163,2]
[350407872,1737831035645,-500.0,0.00018163,2]
[350407873,1737831035655,-500.0,0.00018163,2]
[350407874,1737831035664,-500.0,0.00018163,2]
[350407875,1737831035673,-500.0,0.00018163,2]
[350407876,1737831035683,-500.0,0.00018163,2]
[350407877,1737831035692,-500.0,0.00018163,2]
[350407878,1737831035702,-500.0,0.00018163,2]
[350407879,1737831035711,-500.0,0.00018164,2]
[350407880,1737831035720,-500.0,0.00018164,2]
[350407881,1737831035730,-500.0,0.00018165,2]
[350407882,1737831035740,-769.84270825,0.00018173,2]
[350407883,1737831035750,-31735.40910155,0.00018189,2]
[350407884,1737831035763,-1880.79730344,0.00018189,2]
[350407885,1737831035775,-625.91901,0.00018189,2]
[350407886,1737831035790,-2046.29832456,0.00018189,2]
[350407887,1737831035801,-46614.09594782,0.00018189,2]
[350407888,1737831035810,-500.0,0.00018273,2]
[350407889,1737831035819,-500.0,0.00018273,2]
[350407890,1737831035828,-500.0,0.00018273,2]
[350407891,1737831035838,-500.0,0.00018273,2]
[350407892,1737831035847,-500.0,0.00018273,2]
[350407893,1737831035857,-500.0,0.00018273,2]
[350407894,1737831035866,-500.0,0.00018273,2]
[350407895,1737831035876,-500.0,0.00018273,2]
[350407896,1737831035885,-500.0,0.00018273,2]
[350407897,1737831035894,-500.0,0.00018273,2]
[350407898,1737831035903,-500.0,0.00018273,2]
[350407899,1737831035914,-500.0,0.00018273,2]
[350407900,1737831035923,-717.56,0.00018273,2]
[350407901,1737831035932,-500.0,0.00018273,2]
[350407902,1737831035942,-620.9,0.00018273,2]
[350407903,1737831035951,-197.55,0.00018273,2]
[350407904,1737831035960,-500.0,0.00018273,2]
[350407905,1737831035969,-500.0,0.00018273,2]
[350407906,1737831035979,-500.0,0.00018273,2]
[350407907,1737831035988,-500.0,0.00018273,2]
[350407908,1737831035998,-500.0,0.00018273,2]
[350407909,1737831036007,-500.0,0.00018273,2]
[350407910,1737831036016,-500.0,0.00018273,2]
[350407911,1737831036027,-500.0,0.00018273,2]
[350407912,1737831036036,-500.0,0.00018273,2]
[350407913,1737831036045,-500.0,0.00018273,2]
[350407914,1737831036054,-500.0,0.00018273,2]
[350407915,1737831036064,-500.0,0.00018273,2]
[350407916,1737831036073,-500.0,0.00018273,2]
[350407917,1737831036083,-500.0,0.00018274,2]
[350407918,1737831036092,-391.2211119,0.00018279,2]
[350407919,1737831036101,-500.0,0.0001841,2]
[350407920,1737831036110,-500.0,0.0001841,2]
[350407921,1737831036120,-500.0,0.0001841,2]
[350407922,1737831036129,-500.0,0.0001841,2]
[350407923,1737831036138,-500.0,0.0001841,2]
[350407924,1737831036147,-500.0,0.0001841,2]
[350407925,1737831036161,-163.54198622,0.0001841,2]
[350407926,1737831036170,-500.0,0.0001841,2]
[350407927,1737831036179,-500.0,0.0001841,2]
[350407928,1737831036188,-500.0,0.0001841,2]
[350407929,1737831036198,-500.0,0.0001841,2]
[350407930,1737831036208,-500.0,0.0001841,2]
[350407931,1737831036218,-717.56,0.0001841,2]
[350407932,1737831036227,-500.0,0.0001841,2]
[350407933,1737831036240,-620.9,0.0001841,2]
[350407934,1737831036250,-500.0,0.0001841,2]
[350407935,1737831036259,-500.0,0.0001841,2]
[350407936,1737831036268,-500.0,0.0001841,2]
[350407937,1737831036278,-500.0,0.0001841,2]
[350407938,1737831036289,-500.0,0.0001841,2]
[350407939,1737831036298,-500.0,0.0001841,2]
[350407940,1737831036308,-500.0,0.0001841,2]
[350407941,1737831036317,-186.22772387,0.0001841,2]
[350407942,1737831036327,-500.0,0.0001841,2]
[350407943,1737831036336,-500.0,0.0001841,2]
[350407944,1737831036345,-500.0,0.0001841,2]
[350407945,1737831036354,-500.0,0.0001841,2]
[350407946,1737831036364,-500.0,0.0001841,2]
[350407947,1737831036373,-391.2211119,0.00018452,2]
[350407948,1737831036382,-500.0,0.00018547,2]
[350407949,1737831036394,-500.0,0.00018547,2]
[350407950,1737831036403,-500.0,0.00018547,2]
[350407951,1737831036412,-500.0,0.00018547,2]
[350407952,1737831036422,-500.0,0.00018547,2]
[350407953,1737831036432,-500.0,0.00018547,2]
[350407954,1737831036441,-500.0,0.00018547,2]
[350407955,1737831036451,-272.49,0.00018547,2]
[350407956,1737831036460,-500.0,0.00018547,2]
[350407957,1737831036469,-500.0,0.00018547,2]
[350407958,1737831036479,-500.0,0.00018547,2]
[350407959,1737831036488,-717.56,0.00018547,2]
[350407960,1737831036498,-500.0,0.00018547,2]
[350407961,1737831036507,-620.9,0.00018547,2]
[350407962,1737831036516,-500.0,0.00018547,2]
[350407963,1737831036526,-500.0,0.00018547,2]
[350407964,1737831036535,-500.0,0.00018547,2]
[350407965,1737831036545,-500.0,0.00018547,2]
[350407966,1737831036554,-500.0,0.00018547,2]
[350407967,1737831036563,-500.0,0.00018547,2]
[350407968,1737831036573,-500.0,0.00018547,2]
[350407969,1737831036582,-500.0,0.00018547,2]
[350407970,1737831036592,-605.1,0.00018547,2]
[350407971,1737831036602,-500.0,0.00018547,2]
[350407972,1737831036611,-500.0,0.00018547,2]
[350407973,1737831036621,-500.0,0.00018547,2]
[350407974,1737831036630,-769.84270817,0.0001858,2]
[350407975,1737831036639,-391.2211119,0.00018624,2]
[350407976,1737831036649,-500.0,0.00018684,2]
[350407977,1737831036659,-500.0,0.00018684,2]
[350407978,1737831036670,-500.0,0.00018684,2]
[350407979,1737831036679,-500.0,0.00018684,2]
[350407980,1737831036689,-500.0,0.00018684,2]
[350407981,1737831036698,-500.0,0.00018684,2]
[350407982,1737831036708,-500.0,0.00018684,2]
[350407983,1737831036718,-500.0,0.00018684,2]
[350407984,1737831036727,-500.0,0.00018684,2]
[350407985,1737831036737,-500.0,0.00018684,2]
[350407986,1737831036746,-717.56,0.00018684,2]
[350407987,1737831036755,-500.0,0.00018684,2]
[350407988,1737831036765,-620.9,0.00018684,2]
[350407989,1737831036774,-500.0,0.00018684,2]
[350407990,1737831036784,-500.0,0.00018684,2]
[350407991,1737831036793,-500.0,0.00018684,2]
[350407992,1737831036803,-500.0,0.00018684,2]
[350407993,1737831036812,-500.0,0.00018684,2]
[350407994,1737831036822,-500.0,0.00018684,2]
[350407995,1737831036832,-500.0,0.00018684,2]
[350407996,1737831036841,-500.0,0.00018684,2]
[350407997,1737831036851,-500.0,0.00018684,2]
[350407998,1737831036861,-500.0,0.00018684,2]
[350407999,1737831036871,-500.0,0.00018684,2]
[350408000,1737831036880,-391.2211119,0.00018797,2]
[350408001,1737831036889,-400.21,0.00018821,2]
[350408002,1737831036899,-500.0,0.00018821,2]
[350408003,1737831036908,-500.0,0.00018821,2]
[350408004,1737831036917,-500.0,0.00018821,2]
[350408005,1737831036926,-500.0,0.00018821,2]
[350408006,1737831036935,-193.32534562,0.00018821,2]
[350408007,1737831036950,-306.67465438,0.00018821,2]
[350408008,1737831036959,-500.0,0.00018821,2]
[350408009,1737831036969,-500.0,0.00018821,2]
[350408010,1737831036978,-500.0,0.00018821,2]
[350408011,1737831036988,-500.0,0.00018821,2]
[350408012,1737831036998,-717.56,0.00018821,2]
[350408013,1737831037007,-204.59,0.00018821,2]
[350408014,1737831037017,-620.9,0.00018821,2]
[350408015,1737831037027,-500.0,0.00018821,2]
[350408016,1737831037036,-500.0,0.00018821,2]
[350408017,1737831037045,-500.0,0.00018821,2]
[350408018,1737831037055,-500.0,0.00018821,2]
[350408019,1737831037064,-500.0,0.00018821,2]
[350408020,1737831037073,-500.0,0.00018821,2]
[350408021,1737831037083,-500.0,0.00018821,2]
[350408022,1737831037092,-500.0,0.00018821,2]
[350408023,1737831037102,-500.0,0.00018821,2]
[350408024,1737831037112,-500.0,0.00018821,2]
[350408025,1737831037121,-500.0,0.00018821,2]
[350408026,1737831037130,-500.0,0.000189,6]
[350408027,1737831037140,-500.0,0.00018958,2]
[350408028,1737831037149,-500.0,0.00018958,2]
[350408029,1737831037161,-500.0,0.00018958,2]
[350408030,1737831037171,-500.0,0.00018958,2]
[350408031,1737831037180,-393.76,0.00018958,2]
[350408032,1737831037190,-500.0,0.00018958,2]
[350408033,1737831037200,-500.0,0.00018958,2]
[350408034,1737831037210,-500.0,0.00018958,2]
[350408035,1737831037219,-500.0,0.00018958,2]
[350408036,1737831037229,-717.56,0.00018958,2]
[350408037,1737831037240,-620.9,0.00018958,2]
[350408038,1737831037250,-500.0,0.00018958,2]
[350408039,1737831037259,-500.0,0.00018958,2]
[350408040,1737831037269,-639.32,0.00018958,2]
[350408041,1737831037278,-475.26,0.00018958,2]
[350408042,1737831037288,-500.0,0.00018958,2]
[350408043,1737831037298,-500.0,0.00018958,2]
[350408044,1737831037308,-500.0,0.00018958,2]
[350408045,1737831037318,-500.0,0.00018958,2]
[350408046,1737831037328,-500.0,0.00018958,2]
[350408047,1737831037338,-500.0,0.00018958,2]
[350408048,1737831037347,-500.0,0.00018958,2]
[350408049,1737831037357,-391.2211119,0.00018969,2]
[350408050,1737831037366,-625.93,0.00018979,2]
[350408051,1737831037376,-625.93,0.00018979,2]
[350408052,1737831037386,-117635.82473805,0.0001898,2]
[350408053,1737831037399,-2754.10569044,0.0001898,2]
[350408064,1737831040178,-494.399,0.00017999,2]
[350408128,1737831041194,150.0,9.007e-05,2]
[350408205,1737831046267,-5.601,0.00017999,2]
[350408206,1737831046277,-500.0,0.00017999,2]
[350408207,1737831046287,-254.24,0.00018103,2]
[350408208,1737831046296,-416.63688644,0.00018104,2]
[350408209,1737831046305,-500.0,0.00018136,2]
[350408210,1737831046315,-500.88881281,0.00018163,2]
[350408211,1737831046324,-500.0,0.00018163,2]
[350408212,1737831046334,-501.97089312,0.00018163,2]
[350408213,1737831046344,-500.0,0.00018163,2]
[350408214,1737831046354,-500.0,0.00018273,2]
[350408215,1737831046363,-500.0,0.0001841,2]
[350408216,1737831046373,-500.0,0.00018547,2]
[350408217,1737831046383,-475.01,0.00018684,2]
[350408218,1737831046392,-95986.53989424,0.0001898,2]
[350408219,1737831046407,-2605.7000002,0.0001898,2]
[350408220,1737831046418,-630.28809,0.0001898,2]
[350408221,1737831046590,-781.2499975,0.0001898,2]
[350408237,1737831566770,200.0,8.963e-05,2]
[350408263,1737832232281,-236.84,0.00010137,2]
[350408264,1737832232290,-338.26311894,0.00013608,2]
[350408265,1737832232299,-322.0,0.00013699,2]
[350408266,1737832232309,-250.0,0.00013708,2]
[350408267,1737832232318,-339.87647415,0.00013767,2]
[350408268,1737832232327,-686.69988207,0.00013781,7]
[350408269,1737832232336,-682.23627472,0.00013781,7]
[350408270,1737832232349,-19557.36680518,0.00013781,7]
[350408271,1737832232358,-550.0,0.00015,2]
[350408272,1737832232367,-1217.47,0.00015089,2]
[350408273,1737832232376,-339.87647415,0.00015508,2]
[350408274,1737832232386,-159.18,0.00016112,2]
[350408275,1737832232395,-1093.86,0.00016137,2]
[350408276,1737832232403,-159.18,0.00016138,2]
[350408277,1737832232413,-159.18,0.00016165,2]
[350408278,1737832232422,-159.18,0.00016192,2]
[350408279,1737832232431,-703.38,0.00016259,2]
[350408280,1737832232440,-1287.91,0.00016259,2]
[350408281,1737832232449,-185.8,0.00016297,2]
[350408282,1737832232458,-484.72,0.00016309,2]
[350408283,1737832232468,-550.0,0.00016365,2]
[350408284,1737832232477,-2077.2,0.00016366,2]
[350408285,1737832232486,-1715.84,0.00016366,2]
[350408286,1737832232496,-250.0,0.00016417,2]
[350408287,1737832232505,-1257.52,0.00016435,2]
[350408288,1737832232514,-500.0,0.00016438,2]
[350408289,1737832232523,-236.84,0.00016813,2]
[350408290,1737832232532,-176.58,0.00016827,2]
[350408291,1737832232542,-539.6973282,0.00016841,2]
[350408292,1737832232551,-7378.05,0.00016897,2]
[350408293,1737832232561,-216.83726175,0.00016941,2]
[350408294,1737832232575,-275.83066418,0.00016941,2]
[350408295,1737832232591,-2855.61207407,0.00016941,2]
[350408296,1737832232602,-600.0,0.00017,2]
[350408297,1737832232611,-703.22,0.00017068,2]
[350408298,1737832232620,-250.0,0.00017114,2]
[350408299,1737832232630,-166.39,0.00017185,2]
[350408300,1737832232640,-200.0,0.00017215,2]
[350408301,1737832232650,-350.69,0.00017217,2]
[350408302,1737832232659,-339.87647415,0.00017248,2]
[350408304,1737832232668,-151.63,0.00017259,30]
[350408306,1737832232678,-18048.07208826,0.00017286,2]
[350408308,1737832232690,-522.3652808,0.00017286,2]
[350408310,1737832232706,-5329.56263094,0.00017286,2]
[350408312,1737832232715,-217.5,0.00017335,2]
[350408314,1737832232725,-4101.38,0.00017342,2]
[350408317,1737832232735,-2358.61,0.00017348,2]
[350408319,1737832232744,-1000.0,0.00017348,2]
[350408321,1737832232754,-1217.47,0.00017353,2]
[350408322,1737832232763,-250.0,0.00017419,2]
[350408324,1737832232772,-500.0,0.00017479,2]
[350408327,1737832232782,-193.43,0.00017777,2]
[350408329,1737832232792,-176.9,0.00017827,2]
[350408331,1737832232802,-2037.8867,0.00017899,2]
[350408333,1737832232811,-9235.9369,0.00017899,2]
[350408335,1737832232821,-3027.5694567,0.00017899,2]
[350408337,1737832232830,-1098.13632471,0.000179,2]
[350408339,1737832232840,-225.2162,0.000179,2]
[350408341,1737832232850,-1052.1,0.00017938,2]
[350408343,1737832232859,-1327.114,0.00017991,2]
[350408345,1737832232868,-222.46819676,0.00017999,2]
[350408347,1737832232877,-113064.21037932,0.00017999,2]
[350408349,1737832232887,-202.08871854,0.00017999,2]
[350408351,1737832232896,-500.0,0.00017999,2]
[350408353,1737832232906,-500.0,0.00017999,2]
[350408355,1737832232915,-500.0,0.00017999,2]
[350408357,1737832232924,-500.0,0.00017999,2]
[350408359,1737832232934,-500.0,0.00017999,2]
[350408361,1737832232944,-500.0,0.00017999,2]
[350408363,1737832232953,-500.0,0.00017999,2]
[350408365,1737832232963,-500.0,0.00017999,2]
[350408367,1737832232972,-500.0,0.00017999,2]
[350408369,1737832232981,-500.0,0.00017999,2]
[350408371,1737832232991,-500.0,0.00017999,2]
[350408373,1737832233000,-500.0,0.00017999,2]
[350408375,1737832233009,-500.0,0.00017999,2]
[350408377,1737832233019,-500.0,0.00017999,2]
[350408379,1737832233028,-500.0,0.00017999,2]
[350408381,1737832233037,-500.0,0.00017999,2]
[350408383,1737832233046,-500.0,0.00017999,2]
[350408385,1737832233055,-500.0,0.00017999,2]
[350408387,1737832233065,-500.0,0.00017999,2]
[350408388,1737832233074,-500.0,0.00017999,2]
[350408390,1737832233083,-500.0,0.00017999,2]
[350408393,1737832233093,-500.0,0.00017999,2]
[350408394,1737832233104,-500.0,0.00017999,2]
[350408396,1737832233113,-546.77,0.00017999,2]
[350408399,1737832233123,-500.0,0.00017999,2]
[350408401,1737832233132,-569.13,0.00017999,2]
[350408402,1737832233142,-500.0,0.00017999,2]
[350408404,1737832233151,-46.5231417,0.00017999,2]
[350408407,1737832233164,-453.4768583,0.00017999,2]
[350408409,1737832233173,-500.0,0.00017999,2]
[350408411,1737832233183,-500.0,0.00017999,2]
[350408412,1737832233192,-500.0,0.00017999,2]
[350408414,1737832233201,-500.0,0.00017999,2]
[350408416,1737832233210,-511.242651,0.00017999,2]
[350408418,1737832233220,-500.0,0.00017999,2]
[350408420,1737832233229,-500.0,0.00017999,2]
[350408422,1737832233238,-500.0,0.00017999,2]
[350408424,1737832233248,-3027.56945669,0.00018008,2]
[350408426,1737832233257,-401.16265214,0.00018038,2]
[350408428,1737832233269,-696.97367254,0.00018038,2]
[350408430,1737832233278,-3027.56945669,0.00018118,2]
[350408432,1737832233287,-500.0,0.00018135,2]
[350408434,1737832233296,-500.0,0.00018135,2]
[350408436,1737832233305,-500.0,0.00018135,2]
[350408438,1737832233315,-500.0,0.00018135,2]
[350408440,1737832233324,-500.0,0.00018135,2]
[350408442,1737832233333,-500.0,0.00018135,2]
[350408444,1737832233343,-694.63,0.00018135,2]
[350408446,1737832233353,-500.0,0.00018135,2]
[350408448,1737832233363,-405.06521834,0.00018135,2]
[350408450,1737832233372,-500.0,0.00018135,2]
[350408452,1737832233382,-500.0,0.00018135,2]
[350408454,1737832233391,-500.0,0.00018135,2]
[350408456,1737832233401,-500.0,0.00018135,2]
[350408458,1737832233410,-500.0,0.00018135,2]
[350408460,1737832233419,-216.181238,0.00018135,2]
[350408462,1737832233428,-500.0,0.00018135,2]
[350408464,1737832233438,-500.0,0.00018135,2]
[350408466,1737832233448,-500.0,0.00018135,2]
[350408468,1737832233457,-500.0,0.00018135,2]
[350408470,1737832233467,-500.0,0.00018135,2]
[350408472,1737832233476,-500.0,0.00018136,2]
[350408488,1737832233630,-500.0,0.00018136,2]
[350408490,1737832233641,-452.12041443,0.00018136,2]
[350408493,1737832233655,-47.87958557,0.00018136,2]
[350408495,1737832233665,-500.0,0.00018136,2]
[350408497,1737832233674,-500.0,0.00018136,2]
[350408499,1737832233684,-500.0,0.00018136,2]
[350408501,1737832233694,-500.0,0.00018136,2]
[350408503,1737832233703,-500.0,0.00018136,2]
[350408505,1737832233713,-500.0,0.00018136,2]
[350408507,1737832233723,-500.0,0.00018136,2]
[350408509,1737832233733,-254.17,0.00018136,2]
[350408511,1737832233743,-500.0,0.00018162,2]
[350408513,1737832233753,-500.0,0.00018162,2]
[350408515,1737832233762,-500.0,0.00018162,2]
[350408517,1737832233772,-500.0,0.00018162,2]
[350408519,1737832233781,-500.0,0.00018162,2]
[350408521,1737832233790,-500.0,0.00018162,2]
[350408523,1737832233799,-500.0,0.00018162,2]
[350408525,1737832233809,-500.0,0.00018162,2]
[350408527,1737832233818,-500.0,0.00018162,2]
[350408529,1737832233828,-500.0,0.00018162,2]
[350408531,1737832233837,-500.0,0.00018162,2]
[350408533,1737832233846,-500.0,0.00018162,2]
[350408535,1737832233858,-500.0,0.00018162,2]
[350408537,1737832233868,-500.0,0.00018162,2]
[350408539,1737832233877,-500.0,0.00018162,2]
[350408541,1737832233887,-500.0,0.00018162,2]
[350408543,1737832233896,-500.0,0.00018162,2]
[350408545,1737832233906,-500.0,0.00018162,2]
[350408547,1737832233915,-500.0,0.00018162,2]
[350408549,1737832233925,-500.0,0.00018162,2]
[350408551,1737832233934,-500.0,0.00018162,2]
[350408553,1737832233944,-500.0,0.00018162,2]
[350408555,1737832233953,-500.0,0.00018162,2]
[350408557,1737832233963,-500.0,0.00018162,2]
[350408559,1737832233972,-500.0,0.00018162,2]
[350408561,1737832233981,-500.0,0.00018162,2]
[350408563,1737832233991,-471.520409,0.00018162,2]
[350408565,1737832234000,-500.0,0.00018162,2]
[350408567,1737832234010,-500.0,0.00018162,2]
[350408569,1737832234019,-160.263044,0.00018162,2]
[350408571,1737832234028,-500.0,0.00018162,2]
[350408573,1737832234037,-159.772266,0.00018162,2]
[350408574,1737832234046,-500.0,0.00018163,2]
[350408577,1737832234055,-500.0,0.00018163,2]
[350408578,1737832234065,-511.25948275,0.00018163,2]
[350408581,1737832234075,-500.0,0.00018163,2]
[350408582,1737832234085,-500.0,0.00018163,2]
[350408584,1737832234094,-500.0,0.00018163,2]
[350408586,1737832234105,-500.0,0.00018163,2]
[350408589,1737832234114,-500.0,0.00018163,2]
[350408591,1737832234124,-514.10960007,0.00018163,2]
[350408593,1737832234134,-500.0,0.00018163,2]
[350408595,1737832234143,-500.0,0.00018163,2]
[350408596,1737832234154,-500.0,0.00018163,2]
[350408598,1737832234163,-500.0,0.00018163,2]
[350408600,1737832234173,-500.0,0.00018163,2]
[350408602,1737832234183,-500.0,0.00018163,2]
[350408604,1737832234191,-225.13587772,0.00018163,2]
[350408606,1737832234200,-500.0,0.00018163,2]
[350408608,1737832234210,-500.0,0.00018163,2]
[350408610,1737832234219,-500.0,0.00018163,2]
[350408612,1737832234228,-500.0,0.00018163,2]
[350408614,1737832234237,-500.0,0.00018163,2]
[350408616,1737832234247,-581.44357324,0.00018163,2]
[350408618,1737832234256,-500.0,0.00018163,2]
[350408620,1737832234266,-500.0,0.00018163,2]
[350408622,1737832234276,-484.55964078,0.00018163,2]
[350408624,1737832234285,-500.0,0.00018163,2]
[350408626,1737832234294,-500.0,0.00018163,2]
[350408628,1737832234304,-500.0,0.00018163,2]
[350408630,1737832234313,-500.0,0.00018163,2]
[350408632,1737832234323,-500.0,0.00018163,2]
[350408634,1737832234332,-500.0,0.00018163,2]
[350408636,1737832234342,-500.0,0.00018163,2]
[350408637,1737832234352,-500.0,0.00018163,2]
[350408640,1737832234362,-500.0,0.00018163,2]
[350408642,1737832234371,-500.0,0.00018163,2]
[350408643,1737832234380,-500.0,0.00018163,2]
[350408645,1737832234390,-500.0,0.00018163,2]
[350408647,1737832234399,-500.0,0.00018163,2]
[350408649,1737832234409,-500.0,0.00018163,2]
[350408651,1737832234418,-500.0,0.00018163,2]
[350408653,1737832234427,-500.0,0.00018163,2]
[350408655,1737832234436,-500.0,0.00018163,2]
[350408657,1737832234446,-500.0,0.00018163,2]
[350408659,1737832234455,-500.0,0.00018163,2]
[350408661,1737832234463,-500.0,0.00018163,2]
[350408663,1737832234472,-500.0,0.00018163,2]
[350408665,1737832234484,-500.0,0.00018163,2]
[350408667,1737832234494,-500.0,0.00018163,2]
[350408669,1737832234503,-500.0,0.00018163,2]
[350408671,1737832234512,-500.0,0.00018163,2]
[350408673,1737832234521,-500.0,0.00018163,2]
[350408675,1737832234531,-500.0,0.00018164,2]
[350408677,1737832234540,-500.0,0.00018164,2]
[350408679,1737832234551,-169.12943616,0.00018169,2]
[350408681,1737832234560,-1098.13632468,0.00018176,2]
[350408683,1737832234573,-176.01,0.00018214,2]
[350408685,1737832234582,-3027.56945669,0.00018227,2]
[350408687,1737832234592,-33637.0,0.00018231,2]
[350408689,1737832234602,-500.0,0.00018272,2]
[350408691,1737832234612,-500.0,0.00018272,2]
[350408693,1737832234622,-500.0,0.00018272,2]
[350408695,1737832234631,-500.0,0.00018272,2]
[350408697,1737832234642,-500.0,0.00018272,2]
[350408699,1737832234652,-500.0,0.00018272,2]
[350408701,1737832234661,-694.63,0.00018272,2]
[350408703,1737832234671,-500.0,0.00018272,2]
[350408705,1737832234680,-507.94,0.00018272,2]
[350408707,1737832234689,-500.0,0.00018272,2]
[350408709,1737832234699,-500.0,0.00018272,2]
[350408711,1737832234708,-500.0,0.00018272,2]
[350408713,1737832234717,-500.0,0.00018272,2]
[350408715,1737832234727,-500.0,0.00018272,2]
[350408717,1737832234736,-500.0,0.00018272,2]
[350408719,1737832234746,-500.0,0.00018272,2]
[350408721,1737832234756,-500.0,0.00018272,2]
[350408723,1737832234766,-500.0,0.00018272,2]
[350408725,1737832234775,-500.0,0.00018299,2]
[350408727,1737832234786,-500.0,0.00018299,2]
[350408729,1737832234796,-500.0,0.00018299,2]
[350408731,1737832234805,-500.0,0.00018299,2]
[350408733,1737832234815,-500.0,0.00018299,2]
[350408735,1737832234824,-500.0,0.00018299,2]
[350408737,1737832234833,-500.0,0.00018299,2]
[350408739,1737832234842,-500.0,0.00018299,2]
[350408740,1737832234853,-500.0,0.00018299,2]
[350408743,1737832234862,-500.0,0.00018299,2]
[350408745,1737832234871,-500.0,0.00018299,2]
[350408747,1737832234881,-500.0,0.00018299,2]
[350408748,1737832234891,-500.0,0.00018299,2]
[350408750,1737832234900,-500.0,0.00018299,2]
[350408752,1737832234909,-500.0,0.00018299,2]
[350408753,1737832234918,-500.0,0.00018299,2]
[350408754,1737832234928,-500.0,0.00018299,2]
[350408755,1737832234937,-500.0,0.00018299,2]
[350408756,1737832234946,-500.0,0.00018299,2]
[350408757,1737832234955,-500.0,0.00018299,2]
[350408758,1737832234965,-500.0,0.00018299,2]
[350408759,1737832234974,-500.0,0.00018299,2]
[350408760,1737832234983,-500.0,0.00018299,2]
[350408761,1737832234993,-500.0,0.00018299,2]
[350408762,1737832235002,-500.0,0.00018299,2]
[350408763,1737832235011,-500.0,0.00018299,2]
[350408764,1737832235020,-471.520409,0.00018299,2]
[350408765,1737832235030,-500.0,0.00018299,2]
[350408766,1737832235040,-500.0,0.00018299,2]
[350408768,1737832235049,-500.0,0.00018299,2]
[350408770,1737832235058,-500.0,0.000183,2]
[350408772,1737832235067,-500.0,0.000183,2]
[350408774,1737832235077,-500.0,0.000183,2]
[350408776,1737832235086,-500.0,0.000183,2]
[350408778,1737832235095,-500.0,0.000183,2]
[350408780,1737832235107,-500.0,0.000183,2]
[350408782,1737832235116,-500.0,0.000183,2]
[350408784,1737832235125,-350.80832799,0.000183,2]
[350408786,1737832235134,-500.0,0.000183,2]
[350408788,1737832235144,-500.0,0.000183,2]
[350408790,1737832235153,-500.0,0.000183,2]
[350408792,1737832235162,-1098.13632468,0.00018314,2]
[350408794,1737832235172,-3027.56945669,0.00018337,2]
[350408796,1737832235181,-3844.91777368,0.000184,2]
[350408798,1737832235190,-500.0,0.00018409,2]
[350408800,1737832235199,-500.0,0.00018409,2]
[350408802,1737832235210,-500.0,0.00018409,2]
[350408804,1737832235219,-343.94,0.00018409,2]
[350408806,1737832235229,-500.0,0.00018409,2]
[350408808,1737832235238,-694.63,0.00018409,2]
[350408810,1737832235247,-500.0,0.00018409,2]